bitfinex-derivatives/quotes_ETHF0:USTF0_20250422
["timestamp","ask_amount","ask_price","bid_price","bid_amount"]
[1745327860463,3.02295,1637.9,1637.8,2.58096155]
[1745327861168,1.23009617,1638.1,1638.0,1.22097]
[1745327861462,0.00916617,1638.1,1638.0,1.22097]
[1745327861655,1.23006617,1638.1,1638.0,3.09987538]
[1745327861954,1.23006617,1638.1,1638.0,1.35067538]
[1745327862159,3.03196617,1638.1,1638.0,1.35067538]
[1745327862360,1.22105,1637.9,1637.8,5.58116617]
[1745327862564,1.22105,1637.9,1637.8,6.93184155]
[1745327862768,1.81106617,1638.1,1638.0,1.22097]
[1745327862968,0.00916617,1638.1,1638.0,1.22097]
[1745327863162,0.00916617,1638.1,1638.0,10.55664538]
[1745327864169,1.23006617,1638.1,1638.0,10.55664538]
[1745327864467,1.68713877,1638.1,1638.0,10.55664538]
[1745327864766,1.68713877,1638.1,1638.0,9.33567538]
[1745327864965,0.46623877,1638.1,1638.0,10.55664538]
[1745327865368,0.46623877,1638.1,1638.0,15.55664538]
[1745327865568,0.46623877,1638.1,1638.0,18.76444538]
[1745327865765,8.05346338,1638.4,1638.3,1.22075]
[1745327865967,9.27413338,1638.4,1638.3,1.22075]
[1745327866171,9.27413338,1638.4,1638.3,2.57142538]
[1745327866369,8.05346338,1638.4,1638.3,2.57142538]
[1745327866572,9.27413338,1638.4,1638.3,2.57142538]
[1745327866769,9.27413338,1638.4,1638.3,1.35067538]
[1745327866965,9.27413338,1638.4,1638.3,2.57142538]
[1745327867768,1.22075,1638.3,1638.2,6.322]
[1745327867974,2.95825,1638.3,1638.2,7.67267538]
[1745327868272,2.95825,1638.3,1638.2,1.35067538]
[1745327869473,1.7375,1638.3,1638.2,2.57149538]
[1745327869672,1.22067,1638.4,1638.3,1.22073]
[1745327869869,1.22067,1638.4,1638.3,3.17277538]
[1745327870270,1.22067,1638.4,1638.3,4.39352538]
[1745327870471,1.22067,1638.4,1638.3,9.96552538]
[1745327870872,2.99012617,1638.5,1638.3,9.96552538]
[1745327871074,2.99012617,1638.5,1638.4,2.57134538]
[1745327871274,2.99012617,1638.5,1638.4,1.35067538]
[1745327871872,1.22075,1638.3,1638.2,6.322]
[1745327872077,1.22075,1638.3,1638.2,1.35067538]
[1745327872468,2.92445,1638.3,1638.2,1.35067538]
[1745327873976,3.02600431,1638.3,1638.2,1.35067538]
[1745327874180,11.04767908,1638.3,1638.2,1.35067538]
[1745327874479,9.34397908,1638.3,1638.2,2.57149538]
[1745327874976,9.34397908,1638.3,1638.2,1.35067538]
[1745327875176,9.34397908,1638.3,1638.2,7.67267538]
[1745327875776,9.34397908,1638.3,1638.2,9.44127538]
[1745327876173,9.34397908,1638.3,1638.2,3.11927538]
[1745327876372,11.09877908,1638.3,1638.2,1.35067538]
[1745327877272,11.20032929,1638.3,1638.2,1.35067538]
[1745327877682,3.07710021,1638.3,1638.2,1.35067538]
[1745327877979,2.97555,1638.3,1638.2,1.35067538]
[1745327878379,2.97555,1638.3,1638.0,6.56192]
[1745327878380,1.2209,1638.1,1638.0,5.341]
[1745327878576,1.2209,1638.1,1638.0,6.69167538]
[1745327879281,1.2209,1638.1,1638.0,13.01367538]
[1745327879480,1.2209,1638.1,1638.0,14.77597538]
[1745327879881,1.2209,1638.1,1638.0,13.01367538]
[1745327880075,1.2209,1638.1,1638.0,6.69167538]
[1745327880268,2.866,1638.1,1638.0,6.69167538]
[1745327881270,1.2209,1638.1,1638.0,9.58454538]
[1745327881481,1.2209,1638.1,1638.0,8.36357538]
[1745327882078,1.2209,1638.1,1638.0,14.68557538]
[1745327882777,1.2209,1638.1,1638.0,13.01367538]
[1745327883375,4.4287,1638.1,1638.0,13.01367538]
[1745327883676,14.60921726,1638.1,1638.0,13.01367538]
[1745327884081,14.60921726,1638.1,1638.0,6.69167538]
[1745327884276,11.40141726,1638.1,1638.0,6.69167538]
[1745327884878,14.60921726,1638.1,1638.0,6.69167538]
[1745327885081,14.71078123,1638.1,1638.0,6.69167538]
[1745327886080,14.71078123,1638.1,1638.0,1.35067538]
[1745327886678,1.22105,1637.9,1637.8,0.00916617]
[1745327886982,4.42885,1637.9,1637.8,0.89360277]
[1745327887175,4.53042775,1637.9,1637.8,0.89360277]
[1745327887378,6.32022775,1637.9,1637.8,0.89360277]
[1745327887580,1.22088,1638.2,1637.8,4.10140277]
[1745327887880,1.22092,1638.1,1638.0,1.22094]
[1745327888079,1.22092,1638.1,1638.0,1.7658]
[1745327888280,1.22105,1637.9,1637.8,0.00916617]
[1745327888482,3.01083,1638.0,1637.9,0.8844366]
[1745327889183,3.01083,1638.0,1637.9,7.2064366]
[1745327889484,1.22097,1638.0,1637.9,8.4274266]
[1745327889681,1.22097,1638.0,1637.9,7.2064366]
[1745327889888,4.53034071,1638.0,1637.9,7.2064366]
[1745327890188,4.53034071,1638.0,1637.9,0.8844366]
[1745327890389,1.22105,1637.9,1637.8,5.35016617]
[1745327890684,2.92335,1637.9,1637.8,6.57128617]
[1745327890884,2.92335,1637.9,1637.8,7.45572277]
[1745327891081,2.92335,1637.9,1637.8,6.23460277]
[1745327891882,1.22105,1637.9,1637.8,6.23460277]
[1745327892083,1.22105,1637.9,1637.8,7.45572277]
[1745327892287,1.22105,1637.9,1637.8,6.23460277]
[1745327892782,11.2368221,1637.9,1637.8,6.17e-06]
[1745327892982,1.22112,1637.8,1637.7,4.77971617]
[1745327893190,3.05318,1637.7,1637.2,5.341]
[1745327893491,1.22142,1637.4,1637.3,2.6030366]
[1745327893983,1.22142,1637.4,1637.3,0.8844366]
[1745327894188,1.22149,1637.3,1637.2,11.67216617]
[1745327894390,2.92789,1637.3,1637.2,12.55660277]
[1745327895184,7.92789,1637.3,1637.2,6.17e-06]
[1745327895394,1.22172,1637.0,1636.9,0.03377]
[1745327895585,4.42952,1637.0,1636.9,0.03377]
[1745327896791,1.22179,1636.9,1636.8,0.00916617]
[1745327896982,3.94079,1636.9,1636.8,0.00916617]
[1745327897188,15.76946035,1636.9,1636.8,0.00916617]
[1745327897696,3.94079,1636.9,1636.8,0.00916617]
[1745327897995,8.94079,1636.9,1636.8,0.00916617]
[1745327898395,15.98498473,1636.9,1636.8,0.00916617]
[1745327898596,16.08664987,1636.9,1636.8,0.00916617]
[1745327898791,16.08664987,1636.9,1636.8,6.17e-06]
[1745327898997,1.22232,1636.2,1636.1,1.6942]
[1745327899189,6.26352,1636.3,1636.1,0.8844366]
[1745327899386,2.98792,1636.2,1636.1,0.8844366]
[1745327899692,3.05603,1636.1,1635.8,1.6942]
[1745327899990,2.98806,1636.0,1635.9,0.8844366]
[1745327900194,1.22261,1635.8,1635.7,2.6509]
[1745327900495,1.22269,1635.7,1635.6,5.343]
[1745327900682,1.22269,1635.7,1635.6,5.35216617]
[1745327900883,3.21696617,1636.1,1635.7,1.22269]
[1745327901086,0.00916617,1636.1,1635.7,2.5786366]
[1745327901293,0.00916617,1636.1,1635.8,0.8844366]
[1745327901498,1.73756617,1636.1,1635.8,0.8844366]
[1745327901686,1.73756617,1636.1,1635.9,3.8662566]
[1745327901687,2.96001617,1636.1,1635.9,3.8662566]
[1745327901886,0.00916617,1636.1,1636.0,1.22246]
[1745327902087,1.23155617,1636.1,1636.0,2.6437366]
[1745327902295,2.95995617,1636.1,1636.0,2.6437366]
[1745327902698,0.00916617,1636.1,1635.9,11.666]
[1745327902995,1.23155617,1636.1,1636.0,1.7593]
[1745327903385,1.23155617,1636.1,1636.0,2.98176]
[1745327903386,1.73756617,1636.1,1636.0,2.98176]
[1745327903582,0.00916617,1636.1,1636.0,2.98176]
[1745327903986,0.00916617,1636.1,1636.0,1.7593]
[1745327904182,0.00916617,1636.1,1636.0,8.0813]
[1745327904402,1.23155617,1636.1,1636.0,9.30376]
[1745327904697,0.00916617,1636.1,1636.0,9.30376]
[1745327905098,0.00916617,1636.1,1636.0,14.30376]
[1745327905299,0.644,1636.3,1636.2,1.22232]
[1745327905495,1.86628,1636.3,1636.2,1.22232]
[1745327905702,0.644,1636.3,1636.2,1.22232]
[1745327906004,0.644,1636.3,1636.2,2.97102]
[1745327906298,8.1103456,1636.7,1636.6,1.22202]
[1745327907093,9.3323156,1636.7,1636.6,1.22202]
[1745327907292,1.22202,1636.6,1636.5,15.55780617]
[1745327907599,1.22202,1636.6,1636.5,14.33576617]
[1745327907796,11.0985156,1636.7,1636.5,16.44225277]
[1745327908096,8.1103456,1636.7,1636.6,2.1064566]
[1745327908691,8.1103456,1636.7,1636.6,10.3142566]
[1745327908692,0.17951177,1636.7,1636.6,10.3142566]
[1745327908904,0.17951177,1636.7,1636.6,11.2793566]
[1745327910001,1.77e-06,1636.7,1636.6,11.2793566]
[1745327913200,1.23104617,1636.8,1636.7,1.22194]
[1745327913505,1.23104617,1636.8,1636.7,0.8844366]
[1745327913506,1.23103617,1636.8,1636.7,0.8844366]
[1745327913906,1.23103617,1636.8,1636.7,2.1063766]
[1745327914203,1.23103617,1636.8,1636.7,7.2064366]
[1745327914596,1.22202,1636.6,1636.5,0.00916617]
[1745327914800,4.42982,1636.6,1636.5,0.00916617]
[1745327915195,16.54747715,1636.6,1636.5,0.00916617]
[1745327915702,3.05543,1636.4,1636.0,6.322]
[1745327915896,4.43012,1636.2,1636.1,0.8844366]
[1745327916205,1.22232,1636.2,1636.1,0.8844366]
[1745327916595,4.43012,1636.2,1636.1,0.8844366]
[1745327916795,3.30949844,1636.2,1636.1,2.1068266]
[1745327916995,4.43012,1636.2,1636.1,2.1068266]
[1745327917203,4.43012,1636.2,1636.1,0.8844366]
[1745327918302,4.43012,1636.2,1636.1,2.1068266]
[1745327918491,1.4538,1636.5,1636.1,0.8844366]
[1745327918801,4.53169632,1636.4,1636.2,2.1066966]
[1745327919100,1.22224,1636.3,1636.2,7.2064366]
[1745327919304,1.22224,1636.3,1636.2,6.322]
[1745327920101,1.22239,1636.1,1636.0,5.20516617]
[1745327920499,3.2078,1636.2,1636.0,6.08960277]
[1745327920802,4.43012,1636.2,1636.1,0.8844366]
[1745327921205,1.22232,1636.2,1636.1,0.8844366]
[1745327921908,4.43012,1636.2,1636.1,0.8844366]
[1745327922297,1.22232,1636.2,1636.1,0.8844366]
[1745327922506,1.22232,1636.2,1636.0,12.74962617]
[1745327922702,3.2078,1636.4,1636.3,1.22224]
[1745327922908,1.22217,1636.4,1636.2,1.22226]
[1745327923208,1.22224,1636.3,1636.2,9.0281366]
[1745327923400,1.22224,1636.3,1636.2,8.1437]
[1745327923604,1.22224,1636.3,1636.2,9.0281366]
[1745327924403,1.22224,1636.3,1636.2,7.2064366]
[1745327924603,1.22224,1636.3,1636.2,6.322]
[1745327924793,2.89214,1636.3,1636.2,7.2064366]
[1745327925203,3.21997227,1636.3,1636.2,7.2064366]
[1745327925999,3.21997227,1636.3,1636.2,6.322]
[1745327926204,6.42777227,1636.3,1636.2,6.322]
[1745327927308,6.52946417,1636.3,1636.2,6.322]
[1745327928205,1.22239,1636.1,1636.0,0.00916617]
[1745327928514,1.22239,1636.1,1636.0,0.89360277]
[1745327928709,4.43019,1636.1,1636.0,6.17e-06]
[1745327929000,4.53189065,1636.1,1636.0,6.17e-06]
[1745327929204,4.85972292,1636.1,1636.0,6.17e-06]
[1745327930304,4.85973114,1636.1,1636.0,6.17e-06]
[1745327931209,9.85973114,1636.1,1636.0,6.17e-06]
[1745327931397,4.75802227,1636.1,1636.0,6.17e-06]
[1745327931604,4.75802227,1636.1,1636.0,0.88444277]
[1745327931804,1.55022227,1636.1,1636.0,12.30390277]
[1745327932106,1.55022227,1636.1,1636.0,18.62590277]
[1745327932107,0.32783227,1636.1,1636.0,18.62590277]
[1745327932504,0.32783227,1636.1,1636.0,15.62994277]
[1745327932710,1.55022227,1636.1,1636.0,15.62994277]
[1745327933711,1.55022227,1636.1,1636.0,12.40344277]
[1745327934807,1.55022227,1636.1,1636.0,7.20644277]
[1745327935004,11.55949749,1636.1,1636.0,3.47673894]
[1745327935197,3.05634,1636.0,1635.6,1.7753]
[1745327935402,1.22261,1635.8,1635.7,1.22262]
[1745327935602,1.22261,1635.8,1635.7,1.7753]
[1745327936015,1.22261,1635.8,1635.7,2.99799]
[1745327936197,1.22261,1635.8,1635.7,9.31999]
[1745327936403,1.55044227,1635.8,1635.7,6.322]
[1745327936596,1.55044227,1635.8,1635.7,5.04057]
[1745327936817,3.36324227,1635.8,1635.7,5.04057]
[1745327937011,3.46497505,1635.8,1635.7,5.04057]
[1745327937210,3.46497505,1635.8,1635.3,6.41994]
[1745327937211,1.2229,1635.5,1635.3,6.41994]
[1745327937406,1.2229,1635.5,1635.4,1.7753]
[1745327937910,1.2229,1635.5,1635.4,2.99821]
[1745327938108,1.2229,1635.5,1635.4,9.32021]
[1745327938314,1.55073227,1635.5,1635.4,8.0973]
[1745327938516,0.32783227,1635.5,1635.4,9.32021]
[1745327938815,0.32783227,1635.5,1635.4,17.52801]
[1745327939017,4.75847227,1635.5,1635.4,6.322]
[1745327939217,6.55967227,1635.5,1635.4,6.322]
[1745327940311,3.35187227,1635.5,1635.4,6.322]
[1745327941108,6.55967227,1635.5,1635.4,6.322]
[1745327941313,11.55967227,1635.5,1635.4,6.322]
[1745327941516,6.55967227,1635.5,1635.4,6.322]
[1745327941818,11.55967227,1635.5,1635.4,6.322]
[1745327942017,3.35187227,1635.5,1635.4,6.322]
[1745327942317,6.55967227,1635.5,1635.4,6.322]
[1745327942518,6.66141908,1635.5,1635.4,6.322]
[1745327942819,11.66141822,1635.5,1635.4,3.13113]
[1745327943020,11.66141822,1635.5,1635.4,1.49397]
[1745327943318,1.22306,1635.2,1635.1,5.101]
[1745327944017,1.22306,1635.2,1634.6,4.43125]
[1745327944018,3.05793,1635.1,1634.6,4.43125]
[1745327944317,1.22344,1634.7,1634.6,8.3098]
[1745327944709,1.22344,1634.7,1634.6,3.2078]
[1745327945012,1.6878,1634.8,1634.5,1.22358]
[1745327945218,1.22344,1634.7,1634.6,6.32548]
[1745327945419,1.55127227,1634.7,1634.6,5.102]
[1745327946116,1.22351,1634.6,1634.5,6.322]
[1745327946319,2.91131,1634.6,1634.5,6.322]
[1745327946529,3.23914227,1634.6,1634.5,6.322]
[1745327947218,3.23914227,1634.6,1634.4,0.24443691]
[1745327947219,1.22359,1634.5,1634.4,0.24443691]
[1745327947420,1.22396,1634.0,1633.9,0.24472429]
[1745327947616,3.2078,1634.3,1633.9,0.24472429]
[1745327947822,0.32783227,1634.5,1634.0,3.2078]
[1745327948020,0.00916617,1634.3,1634.1,3.422]
[1745327948219,1.22381,1634.2,1634.1,3.422]
[1745327948413,1.22389,1634.1,1634.0,6.322]
[1745327949028,11.36200007,1634.1,1634.0,6.322]
[1745327949725,11.68983234,1634.1,1634.0,4.73823]
[1745327950114,1.6552888,1634.1,1634.0,3.49132]
[1745327950323,1.22396,1634.0,1633.9,0.24472429]
[1745327950528,3.33729227,1634.0,1633.9,0.24472429]
[1745327950718,8.4408357,1634.0,1633.9,4.29e-06]
[1745327950920,14.08173721,1634.0,1633.7,12.04247077]
[1745327951124,4.43191,1633.8,1633.7,12.04247077]
[1745327951428,4.53545343,1633.8,1633.7,12.04247077]
[1745327951628,6.6487857,1633.8,1633.7,12.04247077]
[1745327951828,3.4409857,1633.8,1633.7,12.04247077]
[1745327952025,3.33744227,1633.8,1633.7,12.04247077]
[1745327952331,3.33744227,1633.8,1633.4,8.3128]
[1745327952332,1.22434,1633.5,1633.4,8.3128]
[1745327952530,0.32783227,1633.5,1633.4,3.2078]
[1745327952726,1.55217227,1633.5,1633.4,3.2078]
[1745327953030,1.22451,1633.3,1633.1,11.11779]
[1745327953229,1.22451,1633.3,1633.1,12.91799]
[1745327953432,0.00916617,1633.4,1633.3,1.22449]
[1745327953632,0.33699844,1633.4,1633.3,1.22449]
[1745327953832,0.33699844,1633.4,1633.3,9.43229]
[1745327954333,9.48792,1634.1,1633.7,1.22416]
[1745327954521,1.22414,1633.8,1633.6,9.53701]
[1745327954723,4.79852,1634.0,1633.6,9.537]
[1745327954937,1.22411,1633.8,1633.7,1.8002]
[1745327955122,1.7386,1634.0,1633.7,1.8002]
[1745327955327,3.05937,1634.3,1633.8,9.53887]
[1745327955526,1.23312617,1634.0,1633.9,1.8002]
[1745327955727,1.22404,1633.9,1633.8,5.107]
[1745327955936,2.96264,1633.9,1633.8,5.107]
[1745327956727,2.96264,1633.9,1633.8,6.7794]
[1745327957234,2.96264,1633.9,1633.8,5.107]
[1745327957531,1.22411,1633.8,1633.7,6.33116617]
[1745327957723,4.86250708,1633.8,1633.7,6.33116617]
[1745327958331,4.75711,1633.8,1633.7,6.33116617]
[1745327958730,0.00916617,1634.0,1633.7,14.53896617]
[1745327958929,0.00916617,1634.0,1633.9,1.22404]
[1745327959136,1.23312617,1634.0,1633.9,13.236]
[1745327959436,0.00916617,1634.0,1633.9,13.236]
[1745327960033,1.81546617,1634.0,1633.9,14.46004]
[1745327960240,1.81546617,1634.0,1633.9,5.98500156]
[1745327960241,3.14483825,1634.0,1633.9,5.98500156]
[1745327960432,3.03942617,1634.0,1633.9,5.98500156]
[1745327960833,1.81546617,1634.0,1633.9,5.98500156]
[1745327961230,3.03942617,1634.0,1633.9,5.98500156]
[1745327962038,1.81546617,1634.0,1633.9,5.98500156]
[1745327962343,3.03942617,1634.0,1633.9,5.98500156]
[1745327962534,1.81546617,1634.0,1633.9,5.98500156]
[1745327962840,3.03942617,1634.0,1633.9,5.98500156]
[1745327963639,3.14483696,1634.0,1633.9,5.98500156]
[1745327963835,3.14482865,1634.0,1633.9,5.98500156]
[1745327964337,1.22411,1633.8,1633.7,0.00916617]
[1745327964639,1.3295023,1633.8,1633.7,0.00916617]
[1745327964834,8.32481333,1633.8,1633.7,0.00916617]
[1745327965035,2.91461,1633.8,1633.7,0.00916617]
[1745327965238,2.91461,1633.8,1633.7,8.14776617]
[1745327966043,2.91461,1633.8,1633.7,6.33116617]
[1745327966645,19.01000916,1633.8,1632.7,3.2078]
[1745327966850,3.2078,1633.4,1632.9,7.79245]
[1745327967049,3.2078,1633.6,1633.2,1.22456]
[1745327967348,1.22446,1633.4,1633.3,1.8166]
[1745327967942,1.22446,1633.4,1633.3,3.04109]
[1745327968143,3.2078,1633.6,1633.4,1.22439]
[1745327968338,1.22426,1633.6,1633.5,1.7439]
[1745327968839,3.21696617,1634.0,1633.8,1.22409]
[1745327969042,4.44092617,1634.0,1633.9,1.7439]
[1745327970139,1.23312617,1634.0,1633.9,8.0659]
[1745327970545,0.00916617,1634.0,1633.9,17.49774]
[1745327971052,0.00916617,1634.0,1633.9,12.49774]
[1745327971246,1.23312617,1634.0,1633.9,17.49774]
[1745327971752,1.23312617,1634.0,1633.9,14.28994]
[1745327971949,0.00916617,1634.0,1633.9,8.0659]
[1745327972147,1.23312617,1634.0,1633.9,8.0659]
[1745327973952,0.00916617,1634.0,1633.9,8.0659]
[1745327974751,0.00916617,1634.0,1633.9,13.4169]
[1745327975055,0.00916617,1634.0,1633.9,14.64094]
[1745327975452,3.2078,1634.4,1633.9,22.84874]
[1745327975656,4.43146,1634.4,1634.1,1.22382]
[1745327975853,4.43146,1634.4,1634.2,7.2585]
[1745327976763,3.2078,1634.4,1634.2,8.48231]
[1745327976959,3.2078,1634.4,1634.3,1.22374]
[1745327977147,0.00916617,1634.5,1634.4,1.22366]
[1745327977457,1e-08,1634.5,1634.4,3.13116]
[1745327977660,1e-08,1634.5,1634.4,8.13116]
[1745327978157,1e-08,1634.5,1634.4,14.45316]
[1745327978354,8.03851624,1635.0,1634.9,1.22329]
[1745327978556,1.22351,1634.6,1634.5,1.979]
[1745327978757,1.22351,1634.6,1634.5,1.9816]
[1745327978954,4.43131,1634.6,1634.5,1.9816]
[1745327979157,4.43131,1634.6,1634.5,6.322]
[1745327979362,4.53680736,1634.6,1634.5,6.322]
[1745327979751,9.53680736,1634.6,1634.5,6.322]
[1745327980054,4.53680736,1634.6,1634.5,6.322]
[1745327980250,1.87856617,1634.7,1634.4,1.9816]
[1745327980452,1.87856617,1634.7,1634.4,3.20526]
[1745327980453,1.22355,1634.6,1634.4,3.20526]
[1745327980649,3.05879,1634.6,1634.1,5.11376617]
[1745327980863,1.22374,1634.3,1634.2,7.2109]
[1745327981252,1.22374,1634.3,1634.2,5.351]
[1745327981455,1.22381,1634.2,1634.1,0.00916617]
[1745327982052,3.11131,1634.2,1634.1,0.00916617]
[1745327982654,1.8875,1634.2,1634.1,0.00916617]
[1745327982956,1.8875,1634.2,1634.1,3.09295617]
[1745327983656,3.11131,1634.2,1634.1,3.09295617]
[1745327983962,1.8875,1634.2,1634.1,3.09295617]
[1745327984262,4.43157,1634.3,1634.1,3.09288617]
[1745327984462,1.22381,1634.2,1634.1,3.09288617]
[1745327984659,3.13131,1634.2,1634.1,0.00916617]
[1745327987461,1.32923358,1634.2,1634.1,0.00916617]
[1745327987760,1.22381,1634.2,1634.1,0.00916617]
[1745327988062,3.09851,1634.2,1634.1,0.00916617]
[1745327988266,3.20394107,1634.2,1634.1,0.00916617]
[1745327988766,1.22389,1634.1,1634.0,4.77888384]
[1745327988971,8.43232107,1634.1,1634.0,2.19419384]
[1745327989154,1.22426,1633.6,1633.5,7.2449]
[1745327990064,1.23340617,1633.7,1633.5,8.46921]
[1745327990265,1.23340617,1633.7,1633.5,14.79121]
[1745327990467,0.00916617,1633.7,1633.6,1.22426]
[1745327990764,1.22426,1633.6,1633.5,13.5669]
[1745327990963,1.22426,1633.6,1633.5,14.79124]
[1745327991359,1.23341617,1633.7,1633.5,14.79124]
[1745327991865,1.23335617,1633.7,1633.6,1.22426]
[1745327992267,0.00916617,1633.7,1633.5,14.79117]
[1745327992459,8.04768241,1633.7,1633.5,14.79117]
[1745327992659,1.22426,1633.6,1633.5,14.79117]
[1745327992861,1.22426,1633.6,1633.5,13.5669]
[1745327993268,1.22426,1633.6,1633.5,14.79124]
[1745327993468,4.43206,1633.6,1633.5,6.322]
[1745327993669,6.42134104,1633.6,1633.5,6.322]
[1745327993865,3.31318104,1633.6,1633.5,8.2978]
[1745327994068,9.27191241,1633.7,1633.6,1.22426]
[1745327994271,1.22426,1633.6,1633.5,8.2978]
[1745327994458,1.22426,1633.6,1633.5,9.52214]
[1745327994664,1.22426,1633.6,1633.5,8.2978]
[1745327995071,3.10816,1633.6,1633.5,8.2978]
[1745327996664,11.14667624,1633.6,1633.5,8.2978]
[1745327997567,11.14667624,1633.6,1633.5,9.52214]
[1745327997768,11.14667624,1633.6,1633.5,8.2978]
[1745327997969,11.14667624,1633.6,1633.5,9.52214]
[1745327998172,11.14667624,1633.6,1633.5,8.2978]
[1745327998374,9.26277624,1633.6,1633.5,9.52214]
[1745327998569,8.03851624,1633.6,1633.5,9.52214]
[1745327998773,9.26277624,1633.6,1633.5,9.52214]
[1745327999474,8.03851624,1633.6,1633.5,9.52214]
[1745327999773,9.26277624,1633.6,1633.5,8.2978]
[1745327999967,26.10261636,1633.6,1633.5,2.73078]
[1745328000167,1.22434,1633.5,1633.4,0.00916617]
[1745328000370,8.53046669,1633.5,1633.4,6.17e-06]
[1745328000567,13.53046669,1633.5,1633.4,6.17e-06]
[1745328000871,2.10412669,1633.5,1633.4,6.17e-06]
[1745328001075,0.10542669,1633.5,1633.4,1.22441617]
[1745328001271,1.22434,1633.5,1633.4,6.32200617]
[1745328001572,10.34075503,1633.5,1633.4,5.00272617]
[1745328001773,10.34074613,1633.5,1633.4,5.00272617]
[1745328002272,1.22463,1633.2,1633.0,3.08486]
[1745328002474,3.2078,1633.3,1633.0,3.08486]
[1745328002666,1.22458,1633.2,1633.1,1.22464]
[1745328002863,6.42664,1633.3,1633.2,1.22456]
[1745328003068,1.22461,1633.2,1633.1,1.22461]
[1745328003574,5.2021,1633.3,1633.1,1.22461]
[1745328003770,0.00916617,1633.7,1633.2,1.22456]
[1745328003975,1.22452,1633.3,1633.2,1.22454]
[1745328004176,1.22449,1633.3,1633.2,7.54654]
[1745328004376,1.22439,1633.5,1633.4,1.22441]
[1745328004673,0.10542299,1633.5,1633.2,9.38323]
[1745328004870,3.2078,1633.5,1633.4,1.22441]
[1745328005072,1.22426,1633.6,1633.5,1.22427]
[1745328005675,1.23340617,1633.7,1633.6,1.22426]
[1745328005877,0.00916617,1633.7,1633.3,7.1016]
[1745328006073,1.22441,1633.4,1633.3,8.32605]
[1745328006274,1.22437,1633.5,1633.4,1.22436]
[1745328006770,1.22441,1633.4,1633.3,7.1016]
[1745328006976,1.22449,1633.4,1633.3,1.22446]
[1745328007176,1.22449,1633.4,1633.2,6.322]
[1745328007177,1.22449,1633.3,1633.2,9.38741]
[1745328007377,1.22449,1633.3,1633.2,9.38746]
[1745328007870,1.22449,1633.3,1633.2,8.1629]
[1745328008476,1.32990735,1633.3,1633.2,6.322]
[1745328008778,3.31760735,1633.3,1633.2,6.322]
[1745328009773,3.31759818,1633.3,1633.2,6.322]
[1745328009971,14.91669117,1633.3,1633.2,5.00563]
[1745328010171,1.22476,1633.0,1632.8,1.8552]
[1745328010370,1.22479,1632.9,1632.8,1.8552]
[1745328010776,1.9877,1633.1,1632.8,3.08006]
[1745328010971,15.35772216,1633.4,1632.9,3.06197]
[1745328011171,0.10541626,1633.3,1633.1,1.22461]
[1745328011476,1.2245,1633.3,1633.0,1.22466]
[1745328011677,3.1476,1633.3,1633.0,1.22466]
[1745328011878,1.9231,1633.3,1632.9,8.2137]
[1745328012072,1.9231,1633.3,1632.9,6.322]
[1745328012380,3.27594018,1633.2,1632.9,6.322]
[1745328012578,1.9231,1633.1,1633.0,1.22471]
[1745328012770,3.14774,1633.1,1632.9,7.54676]
[1745328012970,3.14777,1633.1,1632.9,7.54676]
[1745328013170,3.14777,1633.1,1632.9,7.56116]
[1745328013480,3.14776,1633.1,1632.9,7.56117]
[1745328013670,1.22471,1633.0,1632.9,6.3364]
[1745328013979,3.18241,1633.0,1632.9,6.322]
[1745328014371,3.28777776,1633.0,1632.9,6.322]
[1745328014772,0.10536776,1633.0,1632.9,6.322]
[1745328014967,1.33008343,1633.0,1632.9,6.322]
[1745328015173,2.06307343,1633.0,1632.9,6.322]
[1745328015374,3.28778343,1633.0,1632.9,6.322]
[1745328015574,3.28778343,1633.0,1632.9,8.1947]
[1745328016175,1.9577,1633.0,1632.9,8.1947]
[1745328016575,9.3376367,1633.3,1632.9,13.1947]
[1745328016878,1.22456,1633.2,1633.0,7.0489]
[1745328017184,1.22464,1633.1,1633.0,13.3709]
[1745328017378,1.22464,1633.1,1633.0,11.526]
[1745328017682,1.22464,1633.1,1633.0,6.322]
[1745328018078,4.53780042,1633.1,1633.0,6.322]
[1745328018480,6.51950042,1633.1,1633.0,6.322]
[1745328018680,0.10536042,1633.1,1633.0,11.322]
[1745328018878,8.1131367,1633.2,1633.0,19.7338]
[1745328019083,8.1131367,1633.2,1633.1,1.22464]
[1745328019378,1.22464,1633.1,1633.0,15.95851]
[1745328019571,1.22464,1633.1,1633.0,14.7338]
[1745328019777,1.22464,1633.1,1633.0,19.7338]
[1745328019978,1.22464,1633.1,1633.0,16.526]
[1745328020177,9.3377267,1633.2,1633.0,16.526]
[1745328020378,9.3377267,1633.2,1633.1,4.43244]
[1745328020675,5.0728367,1633.2,1633.1,4.43244]
[1745328020875,5.0728367,1633.2,1633.1,9.43244]
[1745328021284,6.2973967,1633.2,1633.1,9.43244]
[1745328021580,5.0728367,1633.2,1633.0,6.322]
[1745328021788,1.22464,1633.1,1633.0,6.322]
[1745328021982,1.22462,1633.2,1633.1,1.2246]
[1745328022488,1.22462,1633.2,1633.1,5.0]
[1745328022778,1.22462,1633.2,1633.1,14.63644]
[1745328023184,1.22462,1633.2,1633.1,5.204]
[1745328024289,1.22462,1633.2,1633.1,6.42864]
[1745328024588,1.22462,1633.2,1633.1,5.204]
[1745328024793,1.22462,1633.2,1633.1,6.42864]
[1745328025088,1.22462,1633.2,1633.1,5.204]
[1745328025888,1.22452,1633.3,1633.1,5.204]
[1745328026086,1.22456,1633.2,1633.1,5.204]
[1745328026288,1.2245,1633.3,1633.1,5.204]
[1745328026481,5.0676,1633.4,1633.1,5.204]
[1745328026688,1.22454,1633.3,1633.1,5.204]
[1745328026883,1.22454,1633.3,1633.1,6.42863]
[1745328027084,1.22456,1633.2,1633.1,5.204]
[1745328027289,3.08436,1633.2,1633.1,5.204]
[1745328027587,20.26720216,1633.6,1633.1,5.204]
[1745328027588,6.26866,1633.5,1633.1,5.204]
[1745328027790,1.22454,1633.3,1633.1,6.42862]
[1745328027988,3.16637699,1633.4,1633.1,5.204]
[1745328027989,1.22456,1633.2,1633.1,5.204]
[1745328028188,3.08436,1633.2,1633.1,5.204]